fUST/lending_fUST_20250217
["ID","MTS","AMOUNT","RATE_DAILY","PERIOD"]
[353289177,1739741446617,-1853.35,8.712e-05,2]
[353289179,1739741446626,-1177.87,8.712e-05,2]
[353289181,1739741446636,-500.0,8.712e-05,2]
[353289183,1739741446645,-7411.39,8.712e-05,2]
[353289185,1739741446655,-982.31,8.712e-05,2]
[353289187,1739741446670,-500.0,8.712e-05,2]
[353289189,1739741446679,-150.05,8.712e-05,2]
[353289191,1739741446688,-150.05,8.712e-05,2]
[353289193,1739741446699,-1852.29,8.712e-05,2]
[353289195,1739741446708,-150.17,8.712e-05,2]
[353289197,1739741446718,-944.0,8.712e-05,2]
[353289199,1739741446728,-1837.4,8.712e-05,2]
[353289201,1739741446741,-3570.28,8.712e-05,2]
[353289203,1739741446750,-623.61,8.712e-05,2]
[353289205,1739741446760,-664.93,8.712e-05,2]
[353289207,1739741446769,-500.0,8.712e-05,2]
[353289209,1739741446779,-234.94,8.712e-05,2]
[353289211,1739741446788,-500.0,8.712e-05,2]
[353289213,1739741446798,-19062.17,8.712e-05,2]
[353289215,1739741446807,-500.0,8.712e-05,2]
[353289217,1739741446817,-500.0,8.712e-05,2]
[353289219,1739741446826,-160.58901203,8.712e-05,2]
[353289221,1739741446836,-179.67048632,8.712e-05,2]
[353289223,1739741446846,-150.05,8.712e-05,2]
[353289225,1739741446856,-771.45,8.712e-05,2]
[353289227,1739741446865,-1012.25,8.712e-05,2]
[353289229,1739741446874,-500.0,8.712e-05,2]
[353289231,1739741446885,-151.0,8.794e-05,2]
[353289233,1739741446894,-904.67,8.794e-05,2]
[353289235,1739741446904,-500.0,8.794e-05,2]
[353289238,1739741446913,-500.0,8.794e-05,2]
[353289239,1739741446925,-500.0,8.794e-05,2]
[353289241,1739741446937,-1009.84,8.794e-05,2]
[353289242,1739741446950,-1032.72,8.794e-05,2]
[353289243,1739741446959,-500.0,8.794e-05,2]
[353289244,1739741446968,-500.0,8.794e-05,2]
[353289245,1739741446977,-500.0,8.794e-05,2]
[353289246,1739741446987,-500.0,8.794e-05,2]
[353289247,1739741446996,-500.0,8.794e-05,2]
[353289248,1739741447005,-582.71,8.794e-05,2]
[353289249,1739741447015,-925.32,8.794e-05,2]
[353289250,1739741447024,-500.0,8.794e-05,2]
[353289251,1739741447034,-631.29,8.794e-05,2]
[353289252,1739741447043,-535.42,8.794e-05,2]
[353289253,1739741447052,-500.0,8.794e-05,2]
[353289254,1739741447062,-597.9,8.794e-05,2]
[353289255,1739741447071,-900.29,8.794e-05,2]
[353289256,1739741447080,-565.58,8.794e-05,2]
[353289257,1739741447090,-2587.49,8.794e-05,2]
[353289258,1739741447099,-1063.59,8.794e-05,2]
[353289259,1739741447110,-8470.64,8.794e-05,2]
[353289260,1739741447119,-505.41,8.794e-05,2]
[353289261,1739741447128,-1008.42,8.794e-05,2]
[353289262,1739741447137,-824.36,8.794e-05,2]
[353289263,1739741447147,-500.0,8.794e-05,2]
[353289265,1739741447157,-500.0,8.794e-05,2]
[353289267,1739741447167,-500.0,8.794e-05,2]
[353289269,1739741447177,-500.0,8.794e-05,2]
[353289271,1739741447186,-810.58,8.794e-05,2]
[353289273,1739741447196,-1325.12,8.794e-05,2]
[353289275,1739741447205,-421.61068976,8.794e-05,2]
[353289277,1739741447216,-500.0,8.794e-05,2]
[353289279,1739741447225,-528.73,8.794e-05,2]
[353289281,1739741447235,-559.11,8.794e-05,2]
[353289283,1739741447246,-1666.87,8.794e-05,2]
[353289285,1739741447255,-1877.29,8.794e-05,2]
[353289287,1739741447264,-1853.35,8.794e-05,2]
[353289289,1739741447274,-1177.87,8.794e-05,2]
[353289291,1739741447284,-179.99573575,8.794e-05,2]
[353289293,1739741447294,-7411.39,8.794e-05,2]
[353289295,1739741447304,-982.31,8.794e-05,2]
[353289297,1739741447314,-1852.29,8.794e-05,2]
[353289299,1739741447324,-1837.4,8.794e-05,2]
[353289301,1739741447334,-3570.28,8.794e-05,2]
[353289303,1739741447344,-623.61,8.794e-05,2]
[353289305,1739741447354,-664.93,8.794e-05,2]
[353289307,1739741447363,-500.0,8.794e-05,2]
[353289309,1739741447373,-500.0,8.794e-05,2]
[353289311,1739741447383,-19062.17,8.794e-05,2]
[353289313,1739741447392,-500.0,8.794e-05,2]
[353289315,1739741447402,-771.45,8.794e-05,2]
[353289317,1739741447412,-1012.25,8.794e-05,2]
[353289319,1739741447422,-500.0,8.794e-05,2]
[353289321,1739741447432,-151.0,8.876e-05,2]
[353289323,1739741447442,-904.67,8.876e-05,2]
[353289325,1739741447452,-500.0,8.876e-05,2]
[353289327,1739741447462,-500.0,8.876e-05,2]
[353289329,1739741447471,-500.0,8.876e-05,2]
[353289331,1739741447482,-1009.84,8.876e-05,2]
[353289334,1739741447492,-1032.72,8.876e-05,2]
[353289336,1739741447502,-500.0,8.876e-05,2]
[353289338,1739741447511,-400.22816265,8.876e-05,2]
[353289340,1739741447521,-500.0,8.876e-05,2]
[353289342,1739741447532,-500.0,8.876e-05,2]
[353289343,1739741447542,-153.92668326,8.876e-05,2]
[353289346,1739741447551,-582.71,8.876e-05,2]
[353289348,1739741447561,-925.32,8.876e-05,2]
[353289349,1739741447571,-287.41394962,8.876e-05,2]
[353289352,1739741447580,-631.29,8.876e-05,2]
[353289354,1739741447590,-535.42,8.876e-05,2]
[353289356,1739741447600,-229.7638614,8.876e-05,2]
[353289357,1739741447610,-597.9,8.876e-05,2]
[353289359,1739741447619,-900.29,8.876e-05,2]
[353289362,1739741447629,-565.58,8.876e-05,2]
[353289364,1739741447638,-2587.49,8.876e-05,2]
[353289365,1739741447648,-1063.59,8.876e-05,2]
[353289367,1739741447658,-8470.64,8.876e-05,2]
[353289369,1739741447672,-505.41,8.876e-05,2]
[353289371,1739741447682,-1008.42,8.876e-05,2]
[353289373,1739741447692,-824.36,8.876e-05,2]
[353289375,1739741447702,-500.0,8.876e-05,2]
[353289377,1739741447712,-500.0,8.876e-05,2]
[353289380,1739741447722,-500.0,8.876e-05,2]
[353289382,1739741447732,-500.0,8.876e-05,2]
[353289384,1739741447744,-810.58,8.876e-05,2]
[353289386,1739741447755,-1325.12,8.876e-05,2]
[353289388,1739741447765,-500.0,8.876e-05,2]
[353289390,1739741447775,-528.73,8.876e-05,2]
[353289392,1739741447788,-559.11,8.876e-05,2]
[353289394,1739741447798,-1666.87,8.876e-05,2]
[353289396,1739741447808,-1877.29,8.876e-05,2]
[353289398,1739741447818,-1853.35,8.876e-05,2]
[353289400,1739741447827,-1177.87,8.876e-05,2]
[353289402,1739741447838,-7411.39,8.876e-05,2]
[353289404,1739741447847,-982.31,8.876e-05,2]
[353289406,1739741447858,-1852.29,8.876e-05,2]
[353289408,1739741447868,-1837.4,8.876e-05,2]
[353289410,1739741447878,-3570.28,8.876e-05,2]
[353289412,1739741447887,-623.61,8.876e-05,2]
[353289414,1739741447896,-664.93,8.876e-05,2]
[353289416,1739741447906,-500.0,8.876e-05,2]
[353289418,1739741447916,-500.0,8.876e-05,2]
[353289420,1739741447926,-19062.17,8.876e-05,2]
[353289422,1739741447935,-500.0,8.876e-05,2]
[353289424,1739741447945,-771.45,8.876e-05,2]
[353289426,1739741447954,-1012.25,8.876e-05,2]
[353289428,1739741447964,-500.0,8.876e-05,2]
[353289430,1739741447974,-3031.15,8.9e-05,2]
[353289432,1739741447985,-1052.595,8.901e-05,2]
[353289434,1739741447995,-151.0,8.905e-05,2]
[353289436,1739741448005,-151.0,8.958e-05,2]
[353289438,1739741448017,-904.67,8.958e-05,2]
[353289440,1739741448026,-500.0,8.958e-05,2]
[353289442,1739741448038,-500.0,8.958e-05,2]
[353289444,1739741448052,-500.0,8.958e-05,2]
[353289446,1739741448062,-1009.84,8.958e-05,2]
[353289448,1739741448074,-1032.72,8.958e-05,2]
[353289450,1739741448085,-500.0,8.958e-05,2]
[353289452,1739741448095,-500.0,8.958e-05,2]
[353289454,1739741448106,-500.0,8.958e-05,2]
[353289456,1739741448115,-582.71,8.958e-05,2]
[353289458,1739741448126,-925.32,8.958e-05,2]
[353289460,1739741448135,-631.29,8.958e-05,2]
[353289462,1739741448145,-535.42,8.958e-05,2]
[353289464,1739741448154,-597.9,8.958e-05,2]
[353289466,1739741448164,-900.29,8.958e-05,2]
[353289468,1739741448174,-565.58,8.958e-05,2]
[353289470,1739741448184,-2587.49,8.958e-05,2]
[353289472,1739741448195,-1063.59,8.958e-05,2]
[353289474,1739741448204,-8470.64,8.958e-05,2]
[353289476,1739741448219,-505.41,8.958e-05,2]
[353289478,1739741448229,-1008.42,8.958e-05,2]
[353289480,1739741448239,-824.36,8.958e-05,2]
[353289482,1739741448249,-500.0,8.958e-05,2]
[353289484,1739741448260,-500.0,8.958e-05,2]
[353289486,1739741448269,-500.0,8.958e-05,2]
[353289488,1739741448280,-500.0,8.958e-05,2]
[353289490,1739741448290,-810.58,8.958e-05,2]
[353289492,1739741448301,-1325.12,8.958e-05,2]
[353289494,1739741448311,-500.0,8.958e-05,2]
[353289496,1739741448321,-528.73,8.958e-05,2]
[353289498,1739741448332,-559.11,8.958e-05,2]
[353289510,1739741448448,-1666.87,8.958e-05,2]
[353289512,1739741448459,-1877.29,8.958e-05,2]
[353289514,1739741448469,-1853.35,8.958e-05,2]
[353289516,1739741448479,-1177.87,8.958e-05,2]
[353289517,1739741448489,-7411.39,8.958e-05,2]
[353289520,1739741448499,-982.31,8.958e-05,2]
[353289523,1739741448523,-1852.29,8.958e-05,2]
[353289525,1739741448537,-1837.4,8.958e-05,2]
[353289527,1739741448549,-3570.28,8.958e-05,2]
[353289529,1739741448561,-623.61,8.958e-05,2]
[353289532,1739741448571,-664.93,8.958e-05,2]
[353289534,1739741448583,-500.0,8.958e-05,2]
[353289536,1739741448593,-500.0,8.958e-05,2]
[353289538,1739741448604,-19062.17,8.958e-05,2]
[353289540,1739741448615,-500.0,8.958e-05,2]
[353289542,1739741448627,-771.45,8.958e-05,2]
[353289544,1739741448637,-1012.25,8.958e-05,2]
[353289546,1739741448647,-442.7758015,8.958e-05,2]
[353289548,1739741448659,-238.56641383,8.986e-05,2]
[353289550,1739741448672,-500.0,8.986e-05,2]
[353289552,1739741448683,-500.0,8.986e-05,2]
[353289554,1739741448693,-500.0,8.986e-05,2]
[353289556,1739741448705,-150.05,8.986e-05,2]
[353289559,1739741448717,-944.0,8.986e-05,2]
[353289561,1739741448728,-500.0,8.986e-05,2]
[353289563,1739741448738,-150.05,8.986e-05,2]
[353289565,1739741448748,-23322.71849073,9e-05,2]
[353289567,1739741448760,-243.40654671,9.015e-05,2]
[353289569,1739741448770,-420.0,9.019e-05,2]
[353289571,1739741448782,-250.21072,9.041e-05,2]
[353289573,1739741448793,-904.67,9.041e-05,2]
[353289575,1739741448804,-500.0,9.041e-05,2]
[353289577,1739741448814,-500.0,9.041e-05,2]
[353289579,1739741448825,-500.0,9.041e-05,2]
[353289581,1739741448834,-1009.84,9.041e-05,2]
[353289583,1739741448845,-1032.72,9.041e-05,2]
[353289585,1739741448855,-500.0,9.041e-05,2]
[353289587,1739741448865,-500.0,9.041e-05,2]
[353289589,1739741448876,-500.0,9.041e-05,2]
[353289591,1739741448886,-582.71,9.041e-05,2]
[353289593,1739741448896,-925.32,9.041e-05,2]
[353289595,1739741448906,-631.29,9.041e-05,2]
[353289598,1739741448916,-535.42,9.041e-05,2]
[353289600,1739741448926,-597.9,9.041e-05,2]
[353289602,1739741448937,-900.29,9.041e-05,2]
[353289604,1739741448947,-565.58,9.041e-05,2]
[353289606,1739741448958,-2587.49,9.041e-05,2]
[353289608,1739741448969,-1063.59,9.041e-05,2]
[353289610,1739741448979,-8470.64,9.041e-05,2]
[353289612,1739741448990,-505.41,9.041e-05,2]
[353289614,1739741449002,-1008.42,9.041e-05,2]
[353289616,1739741449014,-824.36,9.041e-05,2]
[353289618,1739741449025,-500.0,9.041e-05,2]
[353289620,1739741449037,-500.0,9.041e-05,2]
[353289622,1739741449048,-500.0,9.041e-05,2]
[353289624,1739741449059,-500.0,9.041e-05,2]
[353289626,1739741449070,-810.58,9.041e-05,2]
[353289628,1739741449081,-1325.12,9.041e-05,2]
[353289630,1739741449092,-500.0,9.041e-05,2]
[353289632,1739741449103,-528.73,9.041e-05,2]
[353289634,1739741449113,-559.11,9.041e-05,2]
[353289636,1739741449124,-1666.87,9.041e-05,2]
[353289639,1739741449135,-1877.29,9.041e-05,2]
[353289641,1739741449146,-1853.35,9.041e-05,2]
[353289643,1739741449156,-1177.87,9.041e-05,2]
[353289645,1739741449167,-7411.39,9.041e-05,2]
[353289647,1739741449177,-982.31,9.041e-05,2]
[353289649,1739741449189,-1852.29,9.041e-05,2]
[353289651,1739741449198,-1837.4,9.041e-05,2]
[353289653,1739741449208,-3570.28,9.041e-05,2]
[353289655,1739741449219,-623.61,9.041e-05,2]
[353289657,1739741449230,-664.93,9.041e-05,2]
[353289659,1739741449240,-500.0,9.041e-05,2]
[353289661,1739741449250,-500.0,9.041e-05,2]
[353289663,1739741449261,-19062.17,9.041e-05,2]
[353289665,1739741449271,-469.21802136,9.041e-05,2]
[353289667,1739741449282,-771.45,9.041e-05,2]
[353289669,1739741449293,-1012.25,9.041e-05,2]
[353289671,1739741449303,-904.67,9.123e-05,2]
[353289673,1739741449315,-500.0,9.123e-05,2]
[353289675,1739741449326,-500.0,9.123e-05,2]
[353289677,1739741449341,-500.0,9.123e-05,2]
[353289679,1739741449351,-1009.84,9.123e-05,2]
[353289681,1739741449362,-1032.72,9.123e-05,2]
[353289683,1739741449372,-500.0,9.123e-05,2]
[353289685,1739741449382,-500.0,9.123e-05,2]
[353289687,1739741449392,-500.0,9.123e-05,2]
[353289689,1739741449402,-582.71,9.123e-05,2]
[353289691,1739741449412,-925.32,9.123e-05,2]
[353289694,1739741449422,-631.29,9.123e-05,2]
[353289696,1739741449433,-535.42,9.123e-05,2]
[353289698,1739741449443,-597.9,9.123e-05,2]
[353289700,1739741449454,-900.29,9.123e-05,2]
[353289702,1739741449465,-565.58,9.123e-05,2]
[353289704,1739741449476,-2587.49,9.123e-05,2]
[353289706,1739741449486,-1063.59,9.123e-05,2]
[353289708,1739741449496,-8470.64,9.123e-05,2]
[353289710,1739741449506,-505.41,9.123e-05,2]
[353289712,1739741449516,-1008.42,9.123e-05,2]
[353289714,1739741449526,-824.36,9.123e-05,2]
[353289716,1739741449536,-500.0,9.123e-05,2]
[353289718,1739741449547,-500.0,9.123e-05,2]
[353289720,1739741449558,-189.44164715,9.123e-05,2]
[353289722,1739741449568,-500.0,9.123e-05,2]
[353289724,1739741449577,-810.58,9.123e-05,2]
[353289726,1739741449587,-1325.12,9.123e-05,2]
[353289728,1739741449597,-500.0,9.123e-05,2]
[353289729,1739741449607,-528.73,9.123e-05,2]
[353289730,1739741449617,-559.11,9.123e-05,2]
[353289731,1739741449628,-1666.87,9.123e-05,2]
[353289732,1739741449639,-1877.29,9.123e-05,2]
[353289733,1739741449648,-1853.35,9.123e-05,2]
[353289734,1739741449659,-1177.87,9.123e-05,2]
[353289736,1739741449673,-7411.39,9.123e-05,2]
[353289738,1739741449683,-982.31,9.123e-05,2]
[353289740,1739741449693,-1852.29,9.123e-05,2]
[353289742,1739741449704,-1837.4,9.123e-05,2]
[353289745,1739741449715,-3570.28,9.123e-05,2]
[353289747,1739741449726,-623.61,9.123e-05,2]
[353289749,1739741449736,-664.93,9.123e-05,2]
[353289751,1739741449747,-500.0,9.123e-05,2]
[353289753,1739741449757,-500.0,9.123e-05,2]
[353289755,1739741449767,-19062.17,9.123e-05,2]
[353289757,1739741449777,-771.45,9.123e-05,2]
[353289759,1739741449789,-1012.25,9.123e-05,2]
[353289761,1739741449799,-904.67,9.205e-05,2]
[353289763,1739741449809,-322.25837774,9.205e-05,2]
[353289765,1739741449818,-363.90505295,9.205e-05,2]
[353289767,1739741449828,-500.0,9.205e-05,2]
[353289769,1739741449839,-1009.84,9.205e-05,2]
[353289771,1739741449849,-1032.72,9.205e-05,2]
[353289774,1739741449859,-500.0,9.205e-05,2]
[353289776,1739741449869,-500.0,9.205e-05,2]
[353289778,1739741449878,-500.0,9.205e-05,2]
[353289780,1739741449888,-582.71,9.205e-05,2]
[353289782,1739741449898,-925.32,9.205e-05,2]
[353289784,1739741449908,-631.29,9.205e-05,2]
[353289786,1739741449918,-535.42,9.205e-05,2]
[353289788,1739741449927,-597.9,9.205e-05,2]
[353289790,1739741449937,-900.29,9.205e-05,2]
[353289792,1739741449947,-565.58,9.205e-05,2]
[353289794,1739741449956,-2587.49,9.205e-05,2]
[353289796,1739741449968,-1063.59,9.205e-05,2]
[353289798,1739741449978,-8470.64,9.205e-05,2]
[353289800,1739741449987,-505.41,9.205e-05,2]
[353289802,1739741449998,-1008.42,9.205e-05,2]
[353289804,1739741450008,-824.36,9.205e-05,2]
[353289806,1739741450017,-500.0,9.205e-05,2]
[353289808,1739741450027,-500.0,9.205e-05,2]
[353289810,1739741450039,-500.0,9.205e-05,2]
[353289812,1739741450048,-810.58,9.205e-05,2]
[353289814,1739741450058,-1325.12,9.205e-05,2]
[353289816,1739741450069,-500.0,9.205e-05,2]
[353289819,1739741450079,-528.73,9.205e-05,2]
[353289821,1739741450088,-559.11,9.205e-05,2]
[353289823,1739741450100,-1666.87,9.205e-05,2]
[353289825,1739741450109,-1877.29,9.205e-05,2]
[353289827,1739741450119,-1853.35,9.205e-05,2]
[353289829,1739741450128,-1177.87,9.205e-05,2]
[353289831,1739741450138,-7411.39,9.205e-05,2]
[353289833,1739741450148,-982.31,9.205e-05,2]
[353289835,1739741450158,-1852.29,9.205e-05,2]
[353289837,1739741450168,-3570.28,9.205e-05,2]
[353289839,1739741450177,-1837.4,9.205e-05,2]
[353289841,1739741450187,-623.61,9.205e-05,2]
[353289843,1739741450198,-664.93,9.205e-05,2]
[353289845,1739741450208,-500.0,9.205e-05,2]
[353289847,1739741450218,-500.0,9.205e-05,2]
[353289849,1739741450228,-19062.17,9.205e-05,2]
[353289851,1739741450237,-771.45,9.205e-05,2]
[353289853,1739741450247,-500.0,9.26e-05,2]
[353289856,1739741450257,-500.0,9.26e-05,2]
[353289858,1739741450267,-500.0,9.26e-05,2]
[353289860,1739741450276,-150.05,9.26e-05,2]
[353289862,1739741450287,-944.0,9.26e-05,2]
[353289864,1739741450296,-500.0,9.26e-05,2]
[353289866,1739741450306,-150.05,9.26e-05,2]
[353289868,1739741450315,-904.67,9.287e-05,2]
[353289870,1739741450325,-500.0,9.287e-05,2]
[353289872,1739741450334,-1009.84,9.287e-05,2]
[353289874,1739741450344,-1032.72,9.287e-05,2]
[353289876,1739741450353,-500.0,9.287e-05,2]
[353289878,1739741450363,-500.0,9.287e-05,2]
[353289880,1739741450372,-500.0,9.287e-05,2]
[353289882,1739741450382,-582.71,9.287e-05,2]
[353289884,1739741450391,-925.32,9.287e-05,2]
[353289886,1739741450401,-631.29,9.287e-05,2]
[353289888,1739741450411,-535.42,9.287e-05,2]
[353289890,1739741450420,-597.9,9.287e-05,2]
[353289892,1739741450430,-900.29,9.287e-05,2]
[353289894,1739741450440,-565.58,9.287e-05,2]
[353289896,1739741450450,-2587.49,9.287e-05,2]
[353289898,1739741450460,-1063.59,9.287e-05,2]
[353289900,1739741450469,-8470.64,9.287e-05,2]
[353289902,1739741450478,-505.41,9.287e-05,2]
[353289904,1739741450488,-1008.42,9.287e-05,2]
[353289906,1739741450497,-824.36,9.287e-05,2]
[353289908,1739741450507,-500.0,9.287e-05,2]
[353289911,1739741450517,-500.0,9.287e-05,2]
[353289913,1739741450527,-500.0,9.287e-05,2]
[353289915,1739741450536,-810.58,9.287e-05,2]
[353289917,1739741450546,-1325.12,9.287e-05,2]
[353289919,1739741450555,-500.0,9.287e-05,2]
[353289933,1739741450677,-528.73,9.287e-05,2]
[353289935,1739741450687,-559.11,9.287e-05,2]
[353289937,1739741450697,-1666.87,9.287e-05,2]
[353289939,1739741450708,-1877.29,9.287e-05,2]
[353289941,1739741450717,-1853.35,9.287e-05,2]
[353289943,1739741450727,-1177.87,9.287e-05,2]
[353289945,1739741450736,-7411.39,9.287e-05,2]
[353289947,1739741450747,-982.31,9.287e-05,2]
[353289949,1739741450757,-1852.29,9.287e-05,2]
[353289951,1739741450766,-3570.28,9.287e-05,2]
[353289953,1739741450775,-1837.4,9.287e-05,2]
[353289955,1739741450786,-623.61,9.287e-05,2]
[353289957,1739741450795,-664.93,9.287e-05,2]
[353289959,1739741450804,-500.0,9.287e-05,2]
[353289961,1739741450814,-500.0,9.287e-05,2]
[353289963,1739741450824,-19062.17,9.287e-05,2]
[353289965,1739741450834,-771.45,9.287e-05,2]
[353289967,1739741450844,-904.67,9.369e-05,2]
[353289969,1739741450854,-500.0,9.369e-05,2]
[353289971,1739741450863,-1009.84,9.369e-05,2]
[353289973,1739741450872,-1032.72,9.369e-05,2]
[353289975,1739741450882,-500.0,9.369e-05,2]
[353289977,1739741450892,-500.0,9.369e-05,2]
[353289979,1739741450901,-500.0,9.369e-05,2]
[353289981,1739741450911,-582.71,9.369e-05,2]
[353289983,1739741450921,-925.32,9.369e-05,2]
[353289985,1739741450931,-631.29,9.369e-05,2]
[353289987,1739741450940,-535.42,9.369e-05,2]
[353289989,1739741450949,-597.9,9.369e-05,2]
[353289991,1739741450958,-900.29,9.369e-05,2]
[353289994,1739741450968,-565.58,9.369e-05,2]
[353289996,1739741450978,-2587.49,9.369e-05,2]
[353289998,1739741450987,-1063.59,9.369e-05,2]
[353290000,1739741450996,-8470.64,9.369e-05,2]
[353290002,1739741451005,-505.41,9.369e-05,2]
[353290004,1739741451015,-1008.42,9.369e-05,2]
[353290006,1739741451025,-824.36,9.369e-05,2]
[353290008,1739741451034,-500.0,9.369e-05,2]
[353290010,1739741451043,-506.7295932,9.369e-05,2]
[353290012,1739741451052,-500.0,9.369e-05,2]
[353290014,1739741451061,-810.58,9.369e-05,2]
[353290016,1739741451071,-1325.12,9.369e-05,2]
[353290018,1739741451080,-500.0,9.369e-05,2]
[353290020,1739741451090,-528.73,9.369e-05,2]
[353290022,1739741451099,-559.11,9.369e-05,2]
[353290024,1739741451108,-1666.87,9.369e-05,2]
[353290026,1739741451118,-1877.29,9.369e-05,2]
[353290028,1739741451127,-1853.35,9.369e-05,2]
[353290030,1739741451136,-1177.87,9.369e-05,2]
[353290032,1739741451146,-7411.39,9.369e-05,2]
[353290034,1739741451155,-982.31,9.369e-05,2]
[353290036,1739741451165,-1852.29,9.369e-05,2]
[353290038,1739741451175,-3570.28,9.369e-05,2]
[353290040,1739741451184,-1837.4,9.369e-05,2]
[353290042,1739741451195,-623.61,9.369e-05,2]
[353290044,1739741451204,-664.93,9.369e-05,2]
[353290046,1739741451213,-500.0,9.369e-05,2]
[353290048,1739741451223,-500.0,9.369e-05,2]
[353290051,1739741451232,-19062.17,9.369e-05,2]
[353290053,1739741451242,-771.45,9.369e-05,2]
[353290055,1739741451251,-500.0,9.445e-05,2]
[353290057,1739741451261,-500.0,9.445e-05,2]
[353290059,1739741451270,-904.67,9.452e-05,2]
[353290061,1739741451279,-500.0,9.452e-05,2]
[353290063,1739741451289,-1009.84,9.452e-05,2]
[353290065,1739741451299,-1032.72,9.452e-05,2]
[353290067,1739741451308,-500.0,9.452e-05,2]
[353290069,1739741451317,-343.16267921,9.452e-05,2]
[353290071,1739741451327,-500.0,9.452e-05,2]
[353290073,1739741451335,-582.71,9.452e-05,2]
[353290075,1739741451344,-925.32,9.452e-05,2]
[353290077,1739741451354,-631.29,9.452e-05,2]
[353290079,1739741451363,-535.42,9.452e-05,2]
[353290081,1739741451373,-597.9,9.452e-05,2]
[353290083,1739741451382,-900.29,9.452e-05,2]
[353290085,1739741451392,-565.58,9.452e-05,2]
[353290087,1739741451401,-2587.49,9.452e-05,2]
[353290089,1739741451410,-1063.59,9.452e-05,2]
[353290091,1739741451419,-8470.64,9.452e-05,2]
[353290093,1739741451428,-505.41,9.452e-05,2]
[353290095,1739741451438,-1008.42,9.452e-05,2]
[353290097,1739741451447,-824.36,9.452e-05,2]
[353290099,1739741451456,-500.0,9.452e-05,2]
[353290101,1739741451466,-500.0,9.452e-05,2]
[353290103,1739741451475,-810.58,9.452e-05,2]
[353290105,1739741451484,-1325.12,9.452e-05,2]
[353290107,1739741451494,-500.0,9.452e-05,2]
[353290109,1739741451504,-528.73,9.452e-05,2]
[353290111,1739741451513,-559.11,9.452e-05,2]
[353290113,1739741451523,-1666.87,9.452e-05,2]
[353290115,1739741451532,-1877.29,9.452e-05,2]
[353290117,1739741451543,-1853.35,9.452e-05,2]
[353290119,1739741451553,-1177.87,9.452e-05,2]
[353290121,1739741451562,-7411.39,9.452e-05,2]
[353290123,1739741451571,-982.31,9.452e-05,2]
[353290125,1739741451580,-1852.29,9.452e-05,2]
[353290127,1739741451589,-3570.28,9.452e-05,2]
[353290129,1739741451599,-1837.4,9.452e-05,2]
[353290131,1739741451608,-623.61,9.452e-05,2]
[353290133,1739741451619,-664.93,9.452e-05,2]
[353290135,1739741451628,-500.0,9.452e-05,2]
[353290137,1739741451637,-500.0,9.452e-05,2]
[353290139,1739741451646,-19062.17,9.452e-05,2]
[353290141,1739741451655,-771.45,9.452e-05,2]
[353290143,1739741451668,-403.28443514,9.465e-05,2]
[353290145,1739741451677,-260.22259123,9.465e-05,2]
[353290147,1739741451687,-267.3391042,9.465e-05,2]
[353290149,1739741451696,-158.70910435,9.465e-05,2]
[353290151,1739741451707,-168.35714682,9.465e-05,2]
[353290153,1739741451717,-537.76090785,9.465e-05,2]
[353290155,1739741451727,-500.0,9.465e-05,2]
[353290157,1739741451737,-275.10491266,9.466e-05,2]
[353290159,1739741451749,-500.0,9.487e-05,2]
[353290161,1739741451758,-500.0,9.487e-05,2]
[353290163,1739741451769,-500.0,9.487e-05,2]
[353290164,1739741451779,-386.01861773,9.487e-05,2]
[353290166,1739741451789,-500.0,9.487e-05,2]
[353290168,1739741451798,-250.7676488,9.487e-05,2]
[353290170,1739741451807,-500.0,9.487e-05,2]
[353290172,1739741451817,-160.77887321,9.487e-05,2]
[353290174,1739741451826,-500.0,9.487e-05,2]
[353290176,1739741451836,-401.37789182,9.487e-05,2]
[353290178,1739741451845,-500.0,9.487e-05,2]
[353290180,1739741451854,-270.35690835,9.487e-05,2]
[353290182,1739741451863,-238.74675749,9.487e-05,2]